Cogmind - Beta 15 @@@ ROGUE MODE // 2025.05.17 @ 18:36:24 Player: Cheeriohz Result: Core destroyed Performance ------------- Evolutions (0) 0 Regions Visited (1) 200 Robots Destroyed (10) 50 Value Destroyed (232) 232 Prototype IDs (0) 0 Alien Tech Used (0) 0 Bonus (0) 0 TOTAL SCORE: 482 Bonus ------- None Cogmind --------- Core Integrity 0/250 Matter 250/300 Energy 155/160 System Corruption 1% Temperature Critical (500) Movement Treading (160) Location -10/Materials Parts ------- > --- POWER (1) -------- Light Nuclear Core > --- PROPULSION (2) --- Light Treads Light Treads > --- UTILITY (2) ------ Large Storage Unit > --- WEAPON (2) ------- Medium Laser Medium Laser > --- INVENTORY (15) --- Ion Engine Compact Wheel Small Storage Unit High-capacity Battery (250) Large Matter Pod (46) Terrain Scanner Seismic Detector Tractor Beam EM Pulse Gun Medium Laser Peak State ------------ > --- POWER ------------ Light Nuclear Core > --- PROPULSION ------- Light Treads Light Treads > --- UTILITY ---------- Large Storage Unit > --- WEAPON ----------- Medium Laser Medium Laser > --- INVENTORY -------- Ion Engine Compact Wheel Small Storage Unit High-capacity Battery Large Matter Pod Terrain Scanner Seismic Detector Tractor Beam EM Pulse Gun Medium Laser [Rating: 9] Favorites ----------- Power Ion Engine Engine Ion Engine Power Core Light Nuclear Core Propulsion Wheel Treads Light Treads Leg Aluminum Leg Wheel Wheel Utility Seismic Detector Device Seismic Detector Storage Large Storage Unit Weapon Medium Laser Energy Gun Medium Laser Ballistic Gun Assault Rifle Build | -11 -10 ------- Run | Yrd Mat Slots Evolved . | . . Power . | . . Propulsion . | . . Utility . | . . Weapon . | . . Parts Attached 13 | 4 9 Power 1 | . 1 Engine . | . . Core 1 | . 1 Reactor . | . . Propulsion 5 | 2 3 Treads 2 | . 2 Leg . | . . Wheel 3 | 2 1 Hover . | . . Flight . | . . Utility 3 | 1 2 Device 2 | 1 1 Storage 1 | . 1 Processor . | . . Hackware . | . . Protection . | . . Artifact . | . . Weapon 4 | 1 3 Energy Gun 4 | 1 3 Energy Cannon . | . . Ballistic Gun . | . . Ballistic Cannon . | . . Launcher . | . . Special Weapon . | . . Impact Weapon . | . . Slashing Weapon . | . . Piercing Weapon . | . . Special Melee Weapon . | . . Unidentified Prototypes . | . . Parts Lost 6 | . 6 Power 1 | . 1 Propulsion 1 | . 1 Utility 2 | . 2 Weapon 2 | . 2 Highest Loss Streak 4 | . 4 To Critical Strikes . | . . Average Backups 10 | 6 10 Power 1 | 1 1 Propulsion 2 | 4 2 Utility 4 | . 4 Weapon 2 | 1 2 Tool/Special . | . . Unused Backups 10 | . 10 Power 2 | . 2 Propulsion . | . . Utility 6 | . 6 Weapon 2 | . 2 Tool/Special . | . . Average Slot Usage (%) 98 | . 98 Engine 13 | . 13 Treads 7 | . 7 Wheel 20 | . 20 Device 13 | . 13 Storage 14 | . 14 Energy Gun 14 | . 14 Ballistic Gun 13 | . 13 Peak Build Rating 9 | 7 9 Average Rating 7 | 6 7 On Entrance 6 | 6 7 Naked Turns . | . . Heaviest Build 30 | 15 30 Greatest Support 40 | 20 40 Greatest Overweight (x) 1 | 1 1 Average Overweight (x) . | . . Largest Inventory Capacity 15 | 8 15 Average Capacity 13 | 8 13 Most Carried 14 | 8 14 Average Carried 10 | 6 10 Final Capacity 15 | 8 15 Final Carried 10 | 6 10 Class Distribution -------------------- 100% | Mutant Dominant Class ---------------- Mutant | -10/Materials Resources | -11 -10 ----------- Run | Yrd Mat Matter Collected 395 | 251 144 Remotely . | . . Salvage Created 375 | 98 277 Parts 18 | 7 11 Haulers Intercepted . | . . Recyclers Shooed . | . . Parts Field Recycled . | . . Retrieved Matter . | . . Parts Self-Destructed . | . . Prevented . | . . Kills | -11 -10 ------- Run | Yrd Mat Combat Hostiles Destroyed 8 | . 8 Guns 8 | . 8 Classes Destroyed 5 | 2 3 Tunneler 1 | 1 . Recycler 1 | 1 . Swarmer 3 | . 3 Grunt 4 | . 4 Subdweller 1 | . 1 Best Kill Streak 3 | 2 3 Combat Bots Only 3 | . 3 Max Kills in Single Turn 1 | 1 1 Gunslinging . | . . Exploded . | . . Melee . | . . Uniques/NPCs Destroyed . | . . Combat | -11 -10 -------- Run | Yrd Mat Hostile Shots Fired 81 | . 81 Missed 20 | . 20 Hits 61 | . 61 Projectile 61 | . 61 Critical Strikes 1 | . 1 Damage Taken 1014 | . 1014 Core 288 | . 288 Absorbed by Shields . | . . Core Remaining (%) 100 | 100 . Volleys Fired 43 | 4 39 Largest 2 | 2 2 Hottest 100 | 70 100 Shots Fired 82 | 8 74 Gun 82 | 8 74 Cannon . | . . Launcher . | . . Special . | . . Kinetic 33 | 4 29 Thermal 46 | 1 45 Explosive . | . . Electromagnetic 3 | 3 . Robot Hit Streak 28 | 5 28 Robot Miss Streak 2 | 2 2 Penetration Max . | . . Secondary Targets 1 | . 1 Max Gunslinging Chain 1 | . 1 Shots Hit Robots 65 | 5 60 Core Hits 20 | 3 17 Critical Kills . | . . Critical Parts Destroyed . | . . Critical Strikes 9 | . 9 Burn 9 | . 9 Melee Attacks . | . . Impact . | . . Slashing . | . . Piercing . | . . Sneak Attacks . | . . Combat Hostiles . | . . Follow-up Attacks . | . . Damage Inflicted 852 | 66 786 Guns 852 | 66 786 Cannons . | . . Explosions . | . . Melee . | . . Ramming . | . . Kinetic 312 | 26 286 Thermal 513 | 13 500 Explosive . | . . Electromagnetic 27 | 27 . Impact . | . . Slashing . | . . Piercing . | . . Highest Corruption 1 | . 1 Average Corruption 1 | . 1 Corruption Purged . | . . Corruption Blocked . | . . Effects 1 | . 1 Heat Flow Errors 1 | . 1 Overload Shots . | . . Overflow Damage . | . . Projectiles . | . . Explosions . | . . Melee . | . . Knockbacks . | . . Impact . | . . Kinetic . | . . Secondary . | . . Self-Inflicted Damage . | . . Shots . | . . Rammed . | . . Targets Rammed . | . . Kicked . | . . Crushed . | . . Highest Temperature 500 | 9 500 Average Temperature 76 | 6 78 Received Heat Transfer 228 | . 228 Effects 2 | . 2 Shutdowns 1 | . 1 Damage (core) 1 | . 1 Siege Activations . | . . Martial Activations . | . . Shielding Activations . | . . Robots Disrupted . | . . Combat Hostiles . | . . Robots Corrupted . | . . Combat Hostiles . | . . Parts Fried . | . . Impact Corruptions . | . . Robots Melted . | . . Combat Hostiles . | . . Parts Melted 3 | . 3 Heat Transferred 2146 | 37 2109 Parts Sabotaged . | . . Parts Stolen . | . . Parts Stripped . | . . Power Chain Reactions . | . . Alert | -11 -10 ------- Run | Yrd Mat Maximum Alert Level . | . . Low Security (%) 100 | 100 100 Level 1 . | . . Level 2 . | . . Level 3 . | . . Level 4 . | . . Level 5 . | . . High Security . | . . Max Security . | . . Peak Influence 77 | 10 77 Initial . | . . Average 13 | 1 13 Influence Increases 217 | 10 207 Destroy 0b10 Robot/C 140 | . 140 Destroy 0b10 Robot/NC 10 | 10 . Destroy Leader 40 | . 40 Successful Hack 11 | . 11 Destroy Structure 1 | . 1 Lose Combat Pursuer 15 | . 15 Influence Decreases 217 | 10 207 Time Decay 197 | 10 187 Lost Part 20 | . 20 Squads Dispatched 2 | . 2 Investigation . | . . Extermination . | . . Reinforcement 2 | . 2 Assault . | . . Garrison . | . . Intercept . | . . Searches Triggered . | . . Construction Impeded . | . . Haulers Reinforced . | . . Active Scanning Responses . | . . Cargo Convoy Interrupts . | . . Stealth | -11 -10 --------- Run | Yrd Mat Distress Signals 2 | . 2 Communications Jammed . | . . Distress Signals . | . . Times Spotted 23 | . 23 Peak Tracking Total 5 | . 5 Tactical Retreats 2 | . 2 Traps | -11 -10 ------- Run | Yrd Mat Traps Triggered 2 | . 2 Indirectly . | . . Trap Hack Attempts . | . . Triggered . | . . Disarmed . | . . Reprogrammed . | . . Reused . | . . Traps Extracted . | . . Installed . | . . Triggered . | . . Machines | -11 -10 ---------- Run | Yrd Mat Machines Disabled . | . . Max in Single Turn . | . . Machines Repaired . | . . Machines Dismantled . | . . Machines Sabotaged . | . . Overloaded Fab Kills . | . . Hacking | -11 -10 --------- Run | Yrd Mat Machines Accessed 1 | . 1 Terminals 1 | . 1 Fabricators . | . . Repair Stations . | . . Recycling Units . | . . Scanalyzers . | . . Garrison Access . | . . Total Hacks 6 | . 6 Successful 3 | . 3 Failed 3 | . 3 Catastrophic 1 | . 1 Database Lockouts . | . . Manual 5 | . 5 Terminals 6 | . 6 Fabricators . | . . Repair Stations . | . . Recycling Units . | . . Scanalyzers . | . . Garrison Access . | . . Terminal Hacks 3 | . 3 Robot Analysis 3 | . 3 Fabricator Hacks . | . . Repair Station Hacks . | . . Recycling Unit Hacks . | . . Scanalyzer . | . . Garrison Access Hacks . | . . Unauthorized Hacks . | . . Terminals . | . . Fabricators . | . . Repair Stations . | . . Recycling Units . | . . Scanalyzers . | . . Garrison Access . | . . Data Cores Recovered . | . . Used . | . . Hacking Detections 1 | . 1 Full Trace Events . | . . Feedback Events . | . . Feedback Blocked . | . . Robot Schematics Acquired . | . . Robots Built . | . . Authchips . | . . Time . | . . Total Robot Build Rating . | . . Part Schematics Acquired . | . . Parts Built . | . . Authchips . | . . Time . | . . Total Part Build Rating . | . . Parts Repaired . | . . Time . | . . Parts Recycled . | . . Recycled Matter . | . . Retrieved Matter . | . . Retrieved Components . | . . Parts Scanalyzed . | . . Part Schematics Acquired . | . . Parts Damaged . | . . Bothacking | -11 -10 ------------ Run | Yrd Mat Used RIF Installer . | . . Robots Hacked . | . . Non-combat . | . . Combat . | . . Robot Hacks Applied . | . . Relay Couplers Released . | . . Fabnet Peak Effective % . | . . Robots Rewired . | . . Allies Hacked . | . . Hacks Repelled . | . . Allies | -11 -10 -------- Run | Yrd Mat Total Allies . | . . Largest Group . | . . Highest-Rated Group . | . . Highest-Rated Ally . | . . Total Orders . | . . Ally Attacks . | . . Total Damage . | . . Kills . | . . Allies Corrupted . | . . Allies Melted . | . . Intel | -11 -10 ------- Run | Yrd Mat Active Infowar (turns) 799 | 12 787 Seismic 799 | 12 787 Robot Analysis Total 3 | . 3 Derelict Logs Recovered . | . . Drone Launches . | . . Drone Recoveries . | . . Exploration | -11 -10 ------------- Run | Yrd Mat Turns Passed 866 | 39 827 Spaces Moved 581 | 18 563 Core . | . . Treads 84 | . 84 Legs 11 | 11 . Wheels 486 | 7 479 Hover . | . . Flight . | . . Fastest Speed 80 | 80 80 Average Speed 104 | 105 104 Slowest Speed 160 | 120 160 Overloaded Moves . | . . Propulsion Burnouts . | . . Robots Hopped . | . . Potential Cave-ins . | . . Cave-ins Triggered . | . . Exploration Rate (%) 44 | 3 85 Regions Visited 1 Branch Regions . Pre-discovered Areas . | . . Known Exits Taken . | . . Unknown Exits Taken 1 | 1 . Scrap Searched . | . . Spaces Dug . | . . Terrain Destroyed . | . . Melee . | . . Projectile . | . . AOE . | . . Terrain Rammed . | . . Walls Destroyed . | . . Machines Disabled . | . . Actions | -11 -10 --------- Run | Yrd Mat Total 754 | 29 725 Wait 105 | . 105 Move 580 | 17 563 Hop . | . . Pick Up 9 | 1 8 Fast Attach 2 | 2 . Attach 5 | . 5 Detach 1 | 1 . Swap 6 | 2 4 Drop 3 | 2 1 Fire 43 | 4 39 Melee . | . . Ram . | . . Kick . | . . Crush . | . . Escape Stasis . | . . Rewire . | . . Trap . | . . Miscellaneous . | . . Route ------- -11/Scrapyard -10/Materials (discovered 5 exits: [*Mat x3] / [*Min x2]) History --------- Turn | Location | Event 1 | -11/Scrapyard | Discovered new exit (range 3) 40 | -11/Scrapyard | Entered Materials 83 | -10/Materials | Discovered new exit (range 8) 158 | -10/Materials | Discovered new exit (range 14) 299 | -10/Materials | Discovered new exit (range 8) 306 | -10/Materials | Build established: Mutant 381 | -10/Materials | Discovered new exit (range 12) 544 | -10/Materials | Discovered new exit (range 14) 740 | -10/Materials | Derelicts attacked the area 835 | -10/Materials | Core integrity fell below 50% 842 | -10/Materials | Core integrity fell below 20% 868 | -10/Materials | Core destroyed Last Messages --------------- 00839_ HO-X9H(R) suffers critical hit (Burn). 00839_ HO-X9H(R) destroyed. 00841_ AV-MIE(R) suffers critical hit (Burn). 00845_ AV-MIE(R) heat spikes uncontrollably. 00845_ Melted Scrap Shield. 00845_ Med. Laser destroyed. 00846_ AV-MIE(R) overheating. 00850_ AV-MIE(R) destroyed. 00850_ Switching to secondary target: X9-52O(R). 00850_ X9-52O(R) suffers critical hit (Burn). 00853_ X9-52O(R) overheating. 00859_ X9-52O(R) affixes Scrap Shield Fragment to Scrap Shield. 00859_ X9-52O(R) suffers critical hit (Burn). 00860_ System corrupted: Heat flow error (+240). 00861_ X9-52O(R) heat short circuits Sub. Power Source. 00865_ Power failure, Lgt. Nuclear Core shutdown. 00865_ X9-52O(R) suffers critical hit (Burn). 00868_ Overheating: Core damaged (-42). Map ----- +----------------------------------------------------+ | #??# #?# #?????????? | | #??# """"" #?# #?????????? | | #??# """"" #?# #?????????? | | #??# """"" #?# ########+####?????????? | | ##############??# #??# #?????????? | | ## #??????# #??# #?????????? | | ## #??????# #??# #?????????? | | ## #??????+ #??# #?????????? | | # """ #??????# #??# #?????????? | | # """ #??????# #### #?????????? | | + """ #??????# + #?????????? | | # #????+?#+######### #?????????? | | # """ #???? ?# # #?????????? | | ### """ #???# ## ##########?????????? | | ??# """ #???# ## # #???????????? | | ??# #???# ## # #??????####?? | | ??#########???# ## ! # #?????? ??? | | ??????????????# ## # ! #????### ##?? | | ??????????????# ## # #????# #?? | | ??????????????# ## # #????# #?? | | ############### ######+#####+########### " #?? | | #?? | | ########### ####### #??? | | #?????????# !R #?????# #??? | | ###??????####+#;/#### #?????# #??? | | # #??????# !%@% #?# #?????# #??? | | ####### #??????# [ #? #????# #??? | | = # # #??????# # #???# #??? | | """ # ###??????# # #???# #??? | | "R" # ####?????# # < #???# #??? | | " " # !##????# # #???# #??? | | # !#????# #"" ""#???# #??? | | """ # !#????# ##"!!!"##???####??? | | """ # #????# ###"""##??????????? | | """ # !#????##########?#####???????????? | | # < !##???????????????????????????????? | | ####### ####????????????????????????????????? | | ??????#####???????????????????????????????????? | | ??????????????????????????????????????????????? | | ??????????????????????????????????????????????? | | ??????????????????????????????????????????????? | | ??????????????????????????????????????????????? | | | | | | | | | | | | | | | | | +----------------------------------------------------+ Best States ------------- Heat Dissipation 25 Energy Generation 14 Energy Capacity 250 Matter Stores 300 Matter Capacity 300 Sight Range 16 Terrain Scan Density 10 Evasion (%) 50 Recoil Reduction 2 Item Schematics ----------------- None Robot Schematics ------------------ None Fabricated ------------ Nothing Repaired ---------- Nothing Alien Tech Used ----------------- None Achievements -------------- None Challenges ------------ None Game ------ Seed BeamPlexusNanosword Manual? 0 Play Time 00:10:13 Cumulative 211.1 hours Start 2025.05.17 @ 18:31:01 End 2025.05.17 @ 18:36:24 Sessions 1 Manual Loads 0 Difficulty Rogue Special Mode None Game No. 163 Rogue 163 Adventurer 0 Explorer 0 Win Type - Total 4 Types 2/0/1/1/0/0/0/0/0/0 Lore% 45 Gallery% 69 Achievement% 64 Wizard Run 0 Options --------- Layout 1 ASCII 0 Keyboard 1 Movement Numpad Keybinds 0 Fullscreen 1 Font 48/Smallcaps Map View 55x35 Zoom Use 0% Tactical HUD 1 Map Filters NONE Filters NONE Steam 1 RUN: 02e1a502-343c-44a4-b18a-f3a6cbadefdf